[Event "35th European Club Cup 2019"]
[Site "Ulcinj"]
[Date "2019.11.16"]
[Round "7.13"]
[White "Heimann, Andreas"]
[Black "Ivanisevic, Ivan"]
[Result "1/2-1/2"]
[ECO "B10"]
[WhiteElo "2617"]
[BlackElo "2598"]
[Annotator "ChessBase"]
[PlyCount "77"]
[EventDate "2019.11.10"]
[EventType "team-tourn"]
[EventCountry "MNE"]
[SourceTitle "playchess.com"]
[Source "ChessBase"]
[SourceQuality "1"]
[WhiteTeam "Riehen SG"]
[BlackTeam "Sloven Ruma"]
[TimeControl "40/5400+30:1800+30"]

1. e4 {[%emt 0:00:00]} c6 {[%emt 0:00:00]} 2. Nf3 {[%emt 0:00:00]} d5 {[%emt 0:00:03]} 3. d3 {[%emt 0:00:00]} dxe4 {[%emt 0:03:34]} 4. dxe4 {[%emt 0:00:08]} Qxd1+ {[%emt 0:00:06]} 5. Kxd1 {[%emt 0:00:05]} Nd7 {[%emt 0:00:12]} 6. Bf4 {[%emt 0:22:09]} h6 {[%emt 0:10:09]} 7. h4 {[%emt 0:04:03]} Ngf6 {[%emt 0:03:09]} 8. Nc3 {[%emt 0:05:28]} Ng4 {[%emt 0:02:29]} 9. Bg3 {[%emt 0:03:50]} e5 {[%emt 0:02:36]} 10. Ne1 {[%emt 0:01:02]} h5 {[%emt 0:03:09]} 11. a4 {[%emt 0:06:06]} f6 {[%emt 0:05:45]} 12. Bc4 {[%emt 0:01:05]} Nc5 {[%emt 0:01:11]} 13. Ba2 {[%emt 0:06:59]} f5 {[%emt 0:10:22]} 14. exf5 {[%emt 0:01:26]} Bxf5 {[%emt 0:00:07]} 15. Nf3 {[%emt 0:09:38]} O-O-O+ {[%emt 0:00:48]} 16. Kc1 {[%emt 0:00:03]} g6 {[%emt 0:00:21]} 17. Re1 {[%emt 0:02:51]} Bh6+ {[%emt 0:03:25]} 18. Ng5 {[%emt 0:02:39]} Bxg5+ {[%emt 0:06:01]} 19. hxg5 {[%emt 0:00:04]} h4 {[%emt 0:00:08]} 20. Bxe5 {[%emt 0:03:16]} Nxe5 {[%emt 0:01:32]} 21. Rxe5 {[%emt 0:00:08]} h3 {[%emt 0:00:06]} 22. gxh3 {[%emt 0:00:46]} Rxh3 {[%emt 0:00:07]} 23. b4 {[%emt 0:10:28]} Rxc3 {[%emt 0:07:26]} 24. Rxc5 {[%emt 0:00:06]} Rxc5 {[%emt 0:03:39]} 25. bxc5 {[%emt 0:00:05]} a5 {[%emt 0:00:45]} 26. Bb3 {[%emt 0:02:30]} Rd4 {[%emt 0:01:03]} 27. f3 {[%emt 0:04:35]} Rf4 {[%emt 0:02:04]} 28. Ra3 {[%emt 0:00:05]} Kb8 {[%emt 0:05:25]} 29. Bg8 {[%emt 0:01:33]} Rh4 {[%emt 0:01:11]} 30. Kb2 {[%emt 0:01:49]} Ka7 {[%emt 0:02:30]} 31. Rc3 {[%emt 0:02:02]} Rh2 {[%emt 0:04:39]} 32. Bb3 {[%emt 0:00:43]} Rf2 {[%emt 0:02:41]} 33. Kc1 {[%emt 0:00:17]} Kb8 {[%emt 0:01:53]} 34. Kd1 {[%emt 0:01:21]} Rh2 {[%emt 0:03:37]} 35. f4 {[%emt 0:01:42]} Kc7 {[%emt 0:01:31]} 36. Rc4 {[%emt 0:00:20]} Rf2 {[%emt 0:09:23]} 37. Rd4 {[%emt 0:02:49]} Rh2 {[%emt 0:00:39]} 38. Rd2 {[%emt 0:01:03]} Rh3 {[%emt 0:00:21]} 39. Rd4 {[%emt 0:04:51]} 1/2-1/2

[Event "35th European Club Cup 2019"]
[Site "Ulcinj"]
[Date "2019.11.16"]
[Round "7.13"]
[White "Noe, Christopher"]
[Black "Bauer, Christian"]
[Result "0-1"]
[ECO "C11"]
[WhiteElo "2533"]
[BlackElo "2624"]
[Annotator "ChessBase"]
[PlyCount "64"]
[EventDate "2019.11.10"]
[EventType "team-tourn"]
[EventCountry "MNE"]
[SourceTitle "playchess.com"]
[Source "ChessBase"]
[SourceQuality "1"]
[WhiteTeam "De Sprenger Echternach"]
[BlackTeam "Zurich SG"]
[TimeControl "40/5400+30:1800+30"]

1. d4 d6 2. e4 Nf6 3. f3 d5 4. e5 Nfd7 5. f4 c5 6. Nf3 Nc6 7. Be3 e6 8. Nc3 Be7 9. Qd2 O-O 10. O-O-O c4 11. f5 b5 12. Bh6 b4 13. Nb5 exf5 14. Qf4 Rb8 15. Rg1 g6 16. Bxc4 dxc4 17. d5 Qa5 18. dxc6 Qxa2 19. cxd7 c3 20. bxc3 Rxb5 21. dxc8=Q Rxc8 22. Kd2 bxc3+ 23. Ke1 Bc5 24. Qh4 Rb1 25. Qf6 Rxd1+ 26. Kxd1 Qb1+ 27. Bc1 Ba3 28. Qg5 h6 29. Qxh6 Rd8+ 30. Ke2 Qxc2+ 31. Bd2 cxd2 32. Rd1 Qc4+ 0-1

[Event "35th European Club Cup 2019"]
[Site "Ulcinj"]
[Date "2019.11.16"]
[Round "7.13"]
[White "Galburd, Yan"]
[Black "Kjartansson, Gudmundur"]
[Result "1-0"]
[ECO "A47"]
[WhiteElo "2429"]
[BlackElo "2454"]
[Annotator "ChessBase"]
[PlyCount "149"]
[EventDate "2019.11.10"]
[EventType "team-tourn"]
[EventCountry "MNE"]
[SourceTitle "playchess.com"]
[Source "ChessBase"]
[SourceQuality "1"]
[WhiteTeam "Rehovot"]
[BlackTeam "Reykjavik CC"]
[TimeControl "40/5400+30:1800+30"]

1. d4 {[%emt 0:00:00]} Nf6 {[%emt 0:00:00]} 2. Nf3 {[%emt 0:00:00]} b6 {[%emt 0:00:00]} 3. Bf4 {[%emt 0:00:14]} Bb7 {[%emt 0:00:00]} 4. e3 {[%emt 0:00:55]} Nh5 {[%emt 0:00:37]} 5. Bg5 {[%emt 0:05:54]} h6 {[%emt 0:00:14]} 6. Bh4 {[%emt 0:00:01]} g5 {[%emt 0:00:05]} 7. Bg3 {[%emt 0:05:26]} Nxg3 {[%emt 0:00:10]} 8. hxg3 {[%emt 0:00:12]} Bg7 9. c3 {[%emt 0:04:42]} c5 {[%emt 0:00:40]} 10. Bd3 {[%emt 0:03:46]} e6 {[%emt 0:02:45]} 11. Qe2 {[%emt 0:12:27]} Nc6 {[%emt 0:06:12]} 12. Ba6 {[%emt 0:04:56]} Qc8 {[%emt 0:00:44]} 13. Bxb7 {[%emt 0:01:51]} Qxb7 {[%emt 0:00:05]} 14. Na3 {[%emt 0:04:54]} d5 {[%emt 0:04:05]} 15. g4 {[%emt 0:04:39]} O-O {[%emt 0:08:10]} 16. O-O {[%emt 0:04:04]} Rfe8 {[%emt 0:06:58]} 17. Rfe1 {[%emt 0:01:39]} e5 {[%emt 0:07:47]} 18. dxe5 {[%emt 0:00:26]} Bxe5 {[%emt 0:08:29]} 19. Rad1 {[%emt 0:01:47]} Rad8 {[%emt 0:01:45]} 20. Nxe5 {[%emt 0:10:35]} Rxe5 {[%emt 0:00:34]} 21. Qf3 {[%emt 0:02:12]} Qc8 {[%emt 0:13:12]} 22. Re2 {[%emt 0:05:36]} Qe6 {[%emt 0:01:04]} 23. Red2 {[%emt 0:05:07]} Re4 {[%emt 0:01:35]} 24. Qf5 {[%emt 0:07:13]} Rxg4 {[%emt 0:02:06]} 25. Qxe6 {[%emt 0:00:02]} fxe6 {[%emt 0:00:05]} 26. b3 {[%emt 0:01:29]} Ne5 {[%emt 0:09:07]} 27. Kf1 {[%emt 0:01:16]} Rh4 {[%emt 0:01:50]} 28. Ke2 {[%emt 0:02:16]} Rh2 {[%emt 0:00:18]} 29. Rg1 {[%emt 0:00:42]} g4 {[%emt 0:10:06]} 30. e4 {[%emt 0:01:40]} Nc6 {[%emt 0:00:22]} 31. Ke3 {[%emt 0:01:31]} Rh5 {[%emt 0:02:35]} 32. f4 {[%emt 0:00:30]} d4+ {[%emt 0:00:30]} 33. Kf2 {[%emt 0:03:47]} e5 {[%emt 0:07:42]} 34. f5 {[%emt 0:00:30]} dxc3 {[%emt 0:00:30]} 35. Rxd8+ {[%emt 0:00:30]} Nxd8 {[%emt 0:00:30]} 36. Nb5 {[%emt 0:00:44]} Nc6 {[%emt 0:03:10]} 37. Nxc3 {[%emt 0:00:49]} Nd4 {[%emt 0:00:10]} 38. Kg3 {[%emt 0:01:24]} Rg5 {[%emt 0:01:30]} 39. Rh1 {[%emt 0:01:10]} Kh7 {[%emt 0:02:57]} 40. Nd5 {[%emt 0:00:00]} Ne2+ {[%emt 0:00:00]} 41. Kf2 {[%emt 0:02:48]} Nd4 {[%emt 0:05:55]} 42. Nf6+ {[%emt 0:04:36]} Kg7 {[%emt 0:00:14]} 43. Nd7 {[%emt 0:00:26]} Nxf5 {[%emt 0:18:17]} 44. exf5 {[%emt 0:00:23]} Rxf5+ {[%emt 0:00:03]} 45. Kg3 {[%emt 0:01:48]} e4 {[%emt 0:01:04]} 46. Re1 {[%emt 0:01:39]} Rd5 {[%emt 0:00:25]} 47. Nb8 {[%emt 0:00:05]} Rd2 {[%emt 0:04:18]} 48. Rxe4 {[%emt 0:01:19]} Rxa2 {[%emt 0:00:07]} 49. Rxg4+ {[%emt 0:04:40]} Kf6 {[%emt 0:00:12]} 50. b4 {[%emt 0:03:41]} cxb4 {[%emt 0:01:40]} 51. Rxb4 {[%emt 0:00:05]} Rc2 {[%emt 0:01:44]} 52. Kh3 {[%emt 0:01:03]} Rc8 {[%emt 0:00:52]} 53. Na6 {[%emt 0:00:22]} Kg5 {[%emt 0:01:08]} 54. Rb5+ {[%emt 0:00:16]} Kg6 {[%emt 0:00:20]} 55. Rd5 {[%emt 0:01:09]} Rc3+ {[%emt 0:01:10]} 56. g3 {[%emt 0:00:04]} Rc4 {[%emt 0:00:45]} 57. Nb8 {[%emt 0:00:20]} Rc8 {[%emt 0:00:41]} 58. Nd7 {[%emt 0:00:09]} Rc2 {[%emt 0:00:45]} 59. Rd6+ {[%emt 0:00:25]} Kg7 {[%emt 0:00:33]} 60. Ne5 {[%emt 0:00:18]} Re2 {[%emt 0:00:17]} 61. Rd7+ {[%emt 0:01:03]} Kf8 {[%emt 0:00:37]} 62. Ng6+ {[%emt 0:00:15]} Kg8 {[%emt 0:00:41]} 63. Rxa7 {[%emt 0:00:03]} b5 {[%emt 0:00:05]} 64. Rb7 {[%emt 0:00:25]} Rb2 {[%emt 0:00:13]} 65. Nf4 {[%emt 0:00:18]} Rb1 {[%emt 0:00:28]} 66. Nd5 {[%emt 0:00:23]} Rb2 {[%emt 0:00:36]} 67. Nc7 {[%emt 0:00:35]} b4 {[%emt 0:00:30]} 68. Na6 {[%emt 0:00:01]} Ra2 {[%emt 0:00:59]} 69. Nxb4 {[%emt 0:00:02]} Ra5 {[%emt 0:00:04]} 70. Nc6 {[%emt 0:00:20]} Rg5 {[%emt 0:00:29]} 71. Kh4 {[%emt 0:00:15]} Rc5 {[%emt 0:00:27]} 72. Ne7+ {[%emt 0:01:15]} Kf7 {[%emt 0:00:17]} 73. Nf5+ {[%emt 0:00:16]} Kg6 {[%emt 0:00:24]} 74. g4 {[%emt 0:00:02]} h5 {[%emt 0:00:40]} 75. Rb6+ {[%emt 0:00:10]} 1-0

[Event "35th European Club Cup 2019"]
[Site "Ulcinj"]
[Date "2019.11.16"]
[Round "7.14"]
[White "Perunovic, Milos"]
[Black "Renet, Olivier"]
[Result "1-0"]
[ECO "C45"]
[WhiteElo "2578"]
[BlackElo "2475"]
[Annotator "ChessBase"]
[PlyCount "75"]
[EventDate "2019.11.10"]
[EventType "team-tourn"]
[EventCountry "MNE"]
[SourceTitle "playchess.com"]
[Source "ChessBase"]
[SourceQuality "1"]
[WhiteTeam "Sloven Ruma"]
[BlackTeam "Riehen SG"]
[TimeControl "40/5400+30:1800+30"]

1. e4 {[%emt 0:00:00]} e5 {[%emt 0:00:00]} 2. Nf3 {[%emt 0:00:01]} Nc6 {[%emt 0:00:02]} 3. d4 {[%emt 0:00:28]} exd4 {[%emt 0:00:09]} 4. Nxd4 {[%emt 0:00:07]} Bc5 {[%emt 0:00:25]} 5. Nb3 {[%emt 0:01:14]} Bb6 {[%emt 0:00:33]} 6. Nc3 {[%emt 0:00:37]} Nf6 {[%emt 0:00:26]} 7. Bg5 {[%emt 0:01:34]} h6 {[%emt 0:01:25]} 8. Bh4 {[%emt 0:00:08]} O-O {[%emt 0:01:43]} 9. Bd3 {[%emt 0:03:47]} g5 {[%emt 0:11:41]} 10. Bg3 {[%emt 0:00:08]} d5 {[%emt 0:00:04]} 11. exd5 {[%emt 0:13:58]} Re8+ {[%emt 0:01:42]} 12. Be2 {[%emt 0:03:00]} Nb4 {[%emt 0:00:37]} 13. O-O {[%emt 0:04:52]} Bf5 {[%emt 0:09:51]} 14. d6 {[%emt 0:13:14]} cxd6 {[%emt 0:08:33]} 15. Rc1 {[%emt 0:11:22]} d5 {[%emt 0:00:45]} 16. a3 {[%emt 0:08:26]} Nc6 {[%emt 0:03:36]} 17. Na4 {[%emt 0:05:31]} Ne4 {[%emt 0:18:19]} 18. Bb5 {[%emt 0:05:46]} Nxg3 {[%emt 0:02:04]} 19. hxg3 {[%emt 0:00:19]} Bg6 {[%emt 0:05:24]} 20. Kh2 {[%emt 0:09:27]} Re5 {[%emt 0:04:45]} 21. Nxb6 {[%emt 0:01:36]} Qxb6 {[%emt 0:00:13]} 22. Bd3 {[%emt 0:00:37]} Bxd3 {[%emt 0:00:54]} 23. Qxd3 {[%emt 0:02:05]} Rae8 {[%emt 0:02:01]} 24. Rcd1 {[%emt 0:01:05]} Re2 {[%emt 0:12:43]} 25. Rd2 {[%emt 0:00:29]} Rxd2 {[%emt 0:00:08]} 26. Qxd2 {[%emt 0:00:40]} Ne5 {[%emt 0:00:07]} 27. Qxd5 {[%emt 0:05:35]} Ng4+ {[%emt 0:01:38]} 28. Kg1 {[%emt 0:00:10]} Re2 {[%emt 0:04:07]} 29. Qf5 {[%emt 0:01:17]} Qe6 {[%emt 0:01:07]} 30. Qd3 {[%emt 0:01:56]} Re1 {[%emt 0:01:42]} 31. Nd4 {[%emt 0:01:01]} Rxf1+ {[%emt 0:01:38]} 32. Kxf1 {[%emt 0:00:32]} Qa2 {[%emt 0:00:25]} 33. Qe4 {[%emt 0:01:09]} Qb1+ {[%emt 0:01:12]} 34. Ke2 {[%emt 0:00:15]} Nh2 {[%emt 0:00:05]} 35. Qe8+ {[%emt 0:00:15]} Kg7 {[%emt 0:00:09]} 36. Nf5+ {[%emt 0:02:29]} Kf6 {[%emt 0:00:04]} 37. Ne3 {[%emt 0:00:10]} Kg6 38. Qg8+ {Qxb2} 1-0

[Event "35th European Club Cup 2019"]
[Site "Ulcinj"]
[Date "2019.11.16"]
[Round "7.14"]
[White "Pelletier, Yannick"]
[Black "Wiedenkeller, Michael"]
[Result "1/2-1/2"]
[ECO "D20"]
[WhiteElo "2561"]
[BlackElo "2458"]
[Annotator "ChessBase"]
[PlyCount "156"]
[EventDate "2019.11.10"]
[EventType "team-tourn"]
[EventCountry "MNE"]
[SourceTitle "playchess.com"]
[Source "ChessBase"]
[SourceQuality "1"]
[WhiteTeam "Zurich SG"]
[BlackTeam "De Sprenger Echternach"]
[TimeControl "40/5400+30:1800+30"]

1. d4 {[%emt 0:00:15]} d5 {[%emt 0:00:00]} 2. c4 {[%emt 0:00:17]} dxc4 {[%emt 0:00:06]} 3. e4 {[%emt 0:00:30]} Nf6 {[%emt 0:00:19]} 4. e5 {[%emt 0:00:06]} Nd5 {[%emt 0:00:08]} 5. Bxc4 {[%emt 0:00:06]} Bf5 {[%emt 0:00:19]} 6. Qb3 {[%emt 0:01:32]} c6 {[%emt 0:00:46]} 7. Ne2 {[%emt 0:03:58]} e6 {[%emt 0:04:41]} 8. Bxd5 {[%emt 0:15:55]} cxd5 {[%emt 0:00:58]} 9. Qxb7 {[%emt 0:00:04]} Nd7 {[%emt 0:00:29]} 10. Qb3 {[%emt 0:00:23]} Be7 {[%emt 0:20:31]} 11. Qg3 {[%emt 0:00:05]} O-O {[%emt 0:03:05]} 12. Nbc3 {[%emt 0:02:28]} Nb8 {[%emt 0:05:13]} 13. h4 {[%emt 0:07:32]} Kh8 {[%emt 0:02:50]} 14. Bg5 {[%emt 0:03:24]} f6 {[%emt 0:01:46]} 15. exf6 {[%emt 0:00:56]} gxf6 {[%emt 0:00:18]} 16. Bh6 {[%emt 0:00:13]} Rg8 {[%emt 0:01:52]} 17. Qe3 {[%emt 0:00:31]} Nc6 {[%emt 0:09:06]} 18. O-O {[%emt 0:01:43]} Rg4 {[%emt 0:06:26]} 19. Rfd1 {[%emt 0:32:07]} Rxh4 {[%emt 0:10:17]} 20. Ng3 {[%emt 0:01:13]} Bd6 {[%emt 0:09:21]} 21. Nce2 {[%emt 0:00:24]} Bg6 {[%emt 0:01:58]} 22. Bf4 {[%emt 0:02:44]} Qd7 {[%emt 0:00:54]} 23. Rac1 {[%emt 0:04:25]} Rg8 {[%emt 0:01:44]} 24. Rxc6 {[%emt 0:02:41]} Bxf4 {[%emt 0:01:51]} 25. Qxe6 {[%emt 0:00:10]} Qxe6 {[%emt 0:00:18]} 26. Rxe6 {[%emt 0:00:04]} Bc2 {[%emt 0:02:46]} 27. Rf1 {[%emt 0:05:07]} Bd3 {[%emt 0:01:47]} 28. Rd1 {[%emt 0:09:20]} Bc2 {[%emt 0:02:06]} 29. Rf1 {[%emt 0:00:03]} Bd3 {[%emt 0:00:10]} 30. Re1 {[%emt 0:00:04]} Bxg3 {[%emt 0:05:34]} 31. Nxg3 {[%emt 0:00:08]} Rxd4 {[%emt 0:00:55]} 32. Rd1 {[%emt 0:02:38]} Bf5 {[%emt 0:00:24]} 33. Rxd4 {[%emt 0:00:03]} Bxe6 {[%emt 0:00:05]} 34. Nh5 {[%emt 0:02:34]} Rb8 {[%emt 0:06:21]} 35. b3 {[%emt 0:00:25]} f5 {[%emt 0:00:27]} 36. f3 {[%emt 0:01:24]} Rb5 {[%emt 0:01:10]} 37. Nf4 {[%emt 0:01:11]} Bf7 {[%emt 0:00:06]} 38. Kf2 {[%emt 0:00:07]} Kg7 {[%emt 0:00:32]} 39. Ke3 {[%emt 0:00:48]} Kf6 {[%emt 0:01:10]} 40. Ra4 {[%emt 0:00:00]} a5 {[%emt 0:00:00]} 41. Kd4 {[%emt 0:13:16]} h5 {[%emt 0:08:33]} 42. Ne2 {[%emt 0:04:06]} Kg5 {[%emt 0:04:03]} 43. Nc3 {[%emt 0:02:01]} Rb4+ {[%emt 0:02:15]} 44. Rxb4 {[%emt 0:00:06]} axb4 {[%emt 0:00:01]} 45. Ne2 {[%emt 0:00:04]} h4 {[%emt 0:09:44]} 46. Ke5 {[%emt 0:03:29]} Bh5 {[%emt 0:00:31]} 47. Nd4 {[%emt 0:01:18]} Be8 {[%emt 0:02:19]} 48. Nxf5 {[%emt 0:04:46]} Bb5 {[%emt 0:03:17]} 49. Ne3 {[%emt 0:03:17]} Bd3 {[%emt 0:01:19]} 50. f4+ {[%emt 0:01:29]} Kg6 {[%emt 0:01:16]} 51. Nxd5 {[%emt 0:00:40]} Bf1 {[%emt 0:00:49]} 52. Ne3 {[%emt 0:00:09]} Bd3 {[%emt 0:00:41]} 53. f5+ {[%emt 0:02:34]} Kf7 {[%emt 0:00:27]} 54. Kf4 {[%emt 0:00:46]} Bb1 {[%emt 0:00:27]} 55. Nc4 {[%emt 0:00:07]} Kf6 {[%emt 0:00:37]} 56. Nd6 {[%emt 0:00:04]} Ke7 {[%emt 0:01:16]} 57. Ne4 {[%emt 0:00:05]} Bd3 {[%emt 0:00:40]} 58. Ke5 {[%emt 0:01:15]} Bf1 {[%emt 0:00:31]} 59. Ng5 {[%emt 0:01:04]} Bxg2 {[%emt 0:00:43]} 60. f6+ {[%emt 0:00:06]} Kd7 {[%emt 0:01:04]} 61. f7 {[%emt 0:01:34]} Ke7 {[%emt 0:00:12]} 62. Kf5 {[%emt 0:00:16]} h3 {[%emt 0:00:48]} 63. Kg6 {[%emt 0:00:19]} Bd5 {[%emt 0:00:19]} 64. Nxh3 {[%emt 0:00:29]} Bxf7+ {[%emt 0:00:01]} 65. Kg5 {[%emt 0:00:06]} Kd6 {[%emt 0:00:51]} 66. Kf6 {[%emt 0:01:16]} Bg8 {[%emt 0:00:28]} 67. Ng5 {[%emt 0:00:26]} Bd5 {[%emt 0:00:58]} 68. Kf5 {[%emt 0:00:10]} Bb7 {[%emt 0:00:27]} 69. Kf4 {[%emt 0:00:19]} Kd5 {[%emt 0:00:13]} 70. Ke3 {[%emt 0:01:10]} Bc8 {[%emt 0:00:06]} 71. Ne4 {[%emt 0:00:25]} Bf5 {[%emt 0:00:19]} 72. Nf2 {[%emt 0:00:02]} Kc5 {[%emt 0:00:43]} 73. Ne4+ {[%emt 0:01:02]} Kd5 {[%emt 0:00:07]} 74. Nf2 {[%emt 0:00:29]} Kc5 {[%emt 0:00:06]} 75. Nd3+ {[%emt 0:00:32]} Bxd3 {[%emt 0:01:17]} 76. Kxd3 {[%emt 0:00:04]} Kd5 {[%emt 0:00:04]} 77. Ke3 {[%emt 0:00:15]} Ke5 {[%emt 0:00:03]} 78. Kd3 {[%emt 0:00:03]} Kd5 {[%emt 0:00:01] Kd4+} 1/2-1/2

[Event "35th European Club Cup 2019"]
[Site "Ulcinj"]
[Date "2019.11.16"]
[Round "7.14"]
[White "Gretarsson, Helgi Ass"]
[Black "Gorodetzky, David"]
[Result "1/2-1/2"]
[ECO "D02"]
[WhiteElo "2415"]
[BlackElo "2488"]
[Annotator "ChessBase"]
[PlyCount "60"]
[EventDate "2019.11.10"]
[EventType "team-tourn"]
[EventCountry "MNE"]
[SourceTitle "playchess.com"]
[Source "ChessBase"]
[SourceQuality "1"]
[WhiteTeam "Reykjavik CC"]
[BlackTeam "Rehovot"]
[TimeControl "40/5400+30:1800+30"]

1. d4 {[%emt 0:00:00]} d5 {[%emt 0:00:00]} 2. Nf3 {[%emt 0:00:59]} Nf6 {[%emt 0:00:56]} 3. g3 {[%emt 0:00:51]} e6 {[%emt 0:01:06]} 4. Bg2 {[%emt 0:00:04]} b5 {[%emt 0:00:47]} 5. O-O {[%emt 0:06:44]} Nbd7 {[%emt 0:00:07]} 6. Nfd2 {[%emt 0:05:57]} Be7 {[%emt 0:07:57]} 7. e4 {[%emt 0:00:08]} O-O {[%emt 0:01:13]} 8. c3 dxe4 {[%emt 0:04:28]} 9. Nxe4 {[%emt 0:16:34]} Rb8 {[%emt 0:02:09]} 10. Nxf6+ {[%emt 0:02:08]} Nxf6 {[%emt 0:00:27]} 11. Bg5 {[%emt 0:00:08]} Bb7 {[%emt 0:12:46]} 12. Bxb7 {[%emt 0:00:25]} Rxb7 {[%emt 0:00:04]} 13. Bxf6 {[%emt 0:00:05]} Bxf6 {[%emt 0:00:16]} 14. Qf3 Rb8 {[%emt 0:06:00]} 15. Nd2 {[%emt 0:09:53]} c5 {[%emt 0:00:49]} 16. Ne4 {[%emt 0:02:26]} cxd4 {[%emt 0:00:13]} 17. Rad1 {[%emt 0:00:03]} Be7 {[%emt 0:05:28]} 18. Rxd4 {[%emt 0:00:16]} Qc7 {[%emt 0:00:52]} 19. Rfd1 {[%emt 0:00:46]} Rfd8 {[%emt 0:02:43]} 20. Qh5 {[%emt 0:00:08]} Rxd4 {[%emt 0:01:58]} 21. Rxd4 g6 {[%emt 0:01:41]} 22. Qh6 {[%emt 0:08:09]} Rd8 {[%emt 0:11:57]} 23. Ng5 {[%emt 0:00:42]} Bxg5 {[%emt 0:01:28]} 24. Qxg5 {[%emt 0:00:04]} Rxd4 {[%emt 0:00:13]} 25. cxd4 {[%emt 0:00:02]} Qc4 {[%emt 0:00:48]} 26. Qf4 Qxa2 {[%emt 0:10:24]} 27. Qb8+ {[%emt 0:02:21]} Kg7 {[%emt 0:00:00]} 28. Qe5+ {[%emt 0:00:08]} Kg8 {[%emt 0:00:15]} 29. Qb8+ {[%emt 0:00:05]} Kg7 {[%emt 0:00:31]} 30. Qe5+ Kg8 1/2-1/2

[Event "35th European Club Cup 2019"]
[Site "Ulcinj"]
[Date "2019.11.16"]
[Round "7.15"]
[White "Cvitan, Ognjen"]
[Black "Kosic, Dragan"]
[Result "1/2-1/2"]
[ECO "E53"]
[WhiteElo "2490"]
[BlackElo "2477"]
[Annotator "ChessBase"]
[PlyCount "44"]
[EventDate "2019.11.10"]
[EventType "team-tourn"]
[EventCountry "MNE"]
[SourceTitle "playchess.com"]
[Source "ChessBase"]
[SourceQuality "1"]
[WhiteTeam "Riehen SG"]
[BlackTeam "Sloven Ruma"]
[TimeControl "40/5400+30:1800+30"]

1. d4 {[%emt 0:00:00]} Nf6 {[%emt 0:00:00]} 2. c4 {[%emt 0:00:26]} e6 {[%emt 0:00:27]} 3. Nc3 {[%emt 0:02:37]} Bb4 {[%emt 0:03:10]} 4. e3 {[%emt 0:03:28]} O-O {[%emt 0:00:32]} 5. Bd3 {[%emt 0:01:05]} d5 {[%emt 0:02:27]} 6. Nf3 {[%emt 0:01:08]} c5 {[%emt 0:03:10]} 7. O-O {[%emt 0:00:45]} cxd4 {[%emt 0:07:41]} 8. exd4 {[%emt 0:00:59]} dxc4 {[%emt 0:01:05]} 9. Bxc4 {[%emt 0:00:08]} b6 {[%emt 0:05:16]} 10. Bg5 {[%emt 0:06:34]} Bb7 {[%emt 0:05:26]} 11. Ne5 {[%emt 0:03:06]} Nbd7 {[%emt 0:02:40]} 12. Qe2 {[%emt 0:02:35]} Bxc3 {[%emt 0:06:07]} 13. bxc3 {[%emt 0:02:17]} Rc8 {[%emt 0:00:21]} 14. Rac1 {[%emt 0:02:09]} Nxe5 {[%emt 0:06:30]} 15. dxe5 {[%emt 0:01:01]} Rc5 {[%emt 0:00:08]} 16. Bd3 {[%emt 0:03:22]} Qc7 {[%emt 0:03:04]} 17. Bxf6 {[%emt 0:04:17]} gxf6 {[%emt 0:00:09]} 18. Bxh7+ {[%emt 0:01:57]} Kxh7 {[%emt 0:00:11]} 19. Qh5+ {[%emt 0:00:05]} Kg7 {[%emt 0:00:26]} 20. Qg4+ {[%emt 0:00:06]} Kh7 {[%emt 0:00:50]} 21. Qh5+ {[%emt 0:01:05]} Kg7 {[%emt 0:00:28]} 22. Qg4+ {[%emt 0:00:08]} Kh7 {[%emt 0:00:22]} 1/2-1/2

[Event "35th European Club Cup 2019"]
[Site "Ulcinj"]
[Date "2019.11.16"]
[Round "7.15"]
[White "Parkhov, Yair"]
[Black "Ezat, Mohamed"]
[Result "0-1"]
[ECO "E73"]
[WhiteElo "2368"]
[BlackElo "2452"]
[Annotator "ChessBase"]
[PlyCount "64"]
[EventDate "2019.11.10"]
[EventType "team-tourn"]
[EventCountry "MNE"]
[SourceTitle "playchess.com"]
[Source "ChessBase"]
[SourceQuality "1"]
[WhiteTeam "Rehovot"]
[BlackTeam "Reykjavik CC"]
[TimeControl "40/5400+30:1800+30"]

1. d4 {[%emt 0:00:00]} Nf6 {[%emt 0:00:00]} 2. c4 {[%emt 0:00:03]} g6 {[%emt 0:00:08]} 3. Nc3 {[%emt 0:00:30]} Bg7 {[%emt 0:00:30]} 4. e4 {[%emt 0:00:30]} d6 {[%emt 0:00:07]} 5. Be2 {[%emt 0:00:00]} O-O {[%emt 0:00:18]} 6. Be3 {[%emt 0:00:00]} Na6 {[%emt 0:00:03]} 7. Nf3 {[%emt 0:00:00]} c5 {[%emt 0:09:29]} 8. d5 {[%emt 0:01:23]} Nc7 {[%emt 0:04:55]} 9. O-O {[%emt 0:01:24]} e5 {[%emt 0:09:39]} 10. g3 {[%emt 0:14:41]} a6 {[%emt 0:18:01]} 11. a4 {[%emt 0:07:37]} b6 {[%emt 0:02:42]} 12. Ne1 {[%emt 0:05:18]} Bh3 {[%emt 0:02:46]} 13. Ng2 {[%emt 0:00:32]} Qd7 {[%emt 0:02:06]} 14. Qd3 {[%emt 0:15:57]} Ng4 {[%emt 0:04:42]} 15. Bd2 {[%emt 0:01:51]} f5 {[%emt 0:00:46]} 16. f3 {[%emt 0:02:21]} Nf6 {[%emt 0:04:51]} 17. Nd1 {[%emt 0:03:55]} fxe4 {[%emt 0:00:17]} 18. fxe4 {[%emt 0:00:18]} Ng4 {[%emt 0:00:52]} 19. Nf2 {[%emt 0:07:50]} Nxf2 {[%emt 0:02:03]} 20. Rxf2 {[%emt 0:00:06]} Rxf2 {[%emt 0:02:46]} 21. Kxf2 {[%emt 0:00:09]} Ne8 {[%emt 0:01:56]} 22. Kg1 {[%emt 0:04:31]} Nf6 {[%emt 0:01:05]} 23. a5 {[%emt 0:03:35]} bxa5 {[%emt 0:00:08]} 24. Rxa5 {[%emt 0:01:17]} Qb7 {[%emt 0:12:24]} 25. Qc2 {[%emt 0:07:42]} Rf8 {[%emt 0:00:53]} 26. Ra3 {[%emt 0:10:57]} Nxe4 {[%emt 0:11:46]} 27. Qxe4 {[%emt 0:04:10]} Qxb2 {[%emt 0:00:02]} 28. Qe3 {[%emt 0:00:21]} e4 {[%emt 0:01:16]} 29. Bc1 {[%emt 0:00:52]} Qb1 {[%emt 0:02:40]} 30. Rb3 {[%emt 0:00:25]} Qc2 {[%emt 0:00:25]} 31. Ne1 {[%emt 0:05:03]} Qd1 {[%emt 0:00:14]} 32. Bd2 {[%emt 0:01:33]} Bd4 {[%emt 0:00:29]} 0-1